Cogmind - Beta 15 --- EXPLORER MODE // 2025.08.26 @ 19:42:07 Player: Aydz Result: Self-destructed Performance ------------- Evolutions (2) 1000 Regions Visited (6) 1200 Robots Destroyed (53) 265 Value Destroyed (1545) 1545 Prototype IDs (58) 1160 Alien Tech Used (0) 0 Bonus (436) 436 TOTAL SCORE: 5606 Bonus ------- Follower Combat Kills 136 Aligned with FarCom 300 Cogmind --------- Core Integrity 480/550 Matter 300/300 Energy 274/280 System Corruption 0% Temperature Cool (12) Movement Flying (26) Location -8/Storage Parts ------- > --- POWER (1) -------- Cooled Ion Engine > --- PROPULSION (4) --- Improved VTOL Module Improved VTOL Module Improved VTOL Module Improved VTOL Module > --- UTILITY (5) ------ Advanced Heat Sink Advanced Targeting Computer Hacking Suite System Shield PSU Rigger > --- WEAPON (2) ------- Advanced Beam Rifle Ion Cannon > --- INVENTORY (5) ---- Light Nuclear Core Improved VTOL Module Improved VTOL Module Improved Datajack Peak State ------------ > --- POWER ------------ Deuterium Engine > --- PROPULSION ------- Improved VTOL Module Improved VTOL Module Improved VTOL Module Improved VTOL Module > --- UTILITY ---------- Advanced Heat Sink Advanced Targeting Computer Hacking Suite System Shield PSU Rigger > --- WEAPON ----------- Advanced Beam Rifle Ion Cannon > --- INVENTORY -------- Deuterium Engine Deuterium Engine Improved Datajack Katana [Rating: 49] Favorites ----------- Power Light Ion Engine Engine Light Ion Engine Power Core Light Nuclear Core Propulsion Aluminum Leg Leg Aluminum Leg Flight Unit Improved VTOL Module Utility Light Armor Plating Device Improved Terrain Scanner Storage Superbattery Processor Targeting Computer Hackware Hacking Suite Protection Light Armor Plating Weapon Beam Cannon Energy Gun Heavy Laser Energy Cannon Beam Cannon Ballistic Gun Assault Rifle Special Melee Weapon Datajack Build | -11 -10 -10 -10 -9 -8 -8 ------- Run | Yrd Mat Min Exi Min Mat Sto Slots Evolved 5 | . 1 . . . 4 . Power . | . . . . . . . Propulsion 2 | . . . . . 2 . Utility 3 | . 1 . . . 2 . Weapon . | . . . . . . . Parts Attached 43 | 7 2 . 5 4 25 . Power 7 | 1 . . . 2 4 . Engine 6 | 1 . . . 1 4 . Core 1 | . . . . 1 . . Reactor . | . . . . . . . Propulsion 11 | 2 . . . . 9 . Treads . | . . . . . . . Leg 7 | 2 . . . . 5 . Wheel . | . . . . . . . Hover . | . . . . . . . Flight 4 | . . . . . 4 . Utility 15 | 2 . . 4 2 7 . Device 6 | . . . 3 . 3 . Storage 1 | . . . 1 . . . Processor 3 | 1 . . . 1 1 . Hackware 3 | . . . . . 3 . Protection 2 | 1 . . . 1 . . Artifact . | . . . . . . . Weapon 10 | 2 2 . 1 . 5 . Energy Gun 4 | . . . . . 4 . Energy Cannon 3 | . 2 . . . 1 . Ballistic Gun 2 | 2 . . . . . . Ballistic Cannon . | . . . . . . . Launcher . | . . . . . . . Special Weapon . | . . . . . . . Impact Weapon . | . . . . . . . Slashing Weapon . | . . . . . . . Piercing Weapon . | . . . . . . . Special Melee Weapon 1 | . . . 1 . . . Unidentified Prototypes 5 | . . . 3 . 2 . Parts Lost 1 | . . . . . 1 . Power . | . . . . . . . Propulsion . | . . . . . . . Utility 1 | . . . . . 1 . Weapon . | . . . . . . . Highest Loss Streak 1 | . . . . . 1 . To Critical Strikes . | . . . . . . . Average Backups 4 | . 3 4 5 4 3 4 Power . | . . . . . . 1 Propulsion . | . . . . . . 2 Utility 2 | . 2 2 3 2 . . Weapon 1 | . . 1 1 . . . Tool/Special . | . . . . . . . Unused Backups 23 | . . . . 2 17 4 Power 17 | . . . . . 16 1 Propulsion 2 | . . . . . . 2 Utility 1 | . . . . 1 . . Weapon 2 | . . . . 1 1 . Tool/Special 1 | . . . . . . 1 Average Slot Usage (%) 93 | . 87 87 88 100 97 100 Engine 10 | . 12 12 12 11 7 8 Leg 24 | . 25 25 25 25 23 . Flight 2 | . . . . . 8 33 Device 8 | . . . 1 12 16 16 Processor 11 | . 12 12 12 12 9 8 Hackware 1 | . . . . . 6 16 Protection 9 | . 12 12 12 12 5 . Energy Gun 2 | . . . . . 7 8 Energy Cannon 16 | . 17 25 14 25 8 8 Special Melee Weapon 1 | . . . 9 . . . Peak Build Rating 49 | 7 7 8 18 15 49 49 Average Rating 17 | 5 6 7 8 13 35 49 On Entrance 14 | . 7 7 8 12 15 49 Naked Turns . | . . . . . . . Heaviest Build 25 | 9 12 12 12 17 25 19 Greatest Support 64 | 20 20 20 20 20 64 20 Greatest Overweight (x) 3 | . . . . . 3 . Average Overweight (x) . | . . . . . . . Largest Inventory Capacity 5 | 5 5 5 5 5 5 5 Average Capacity 5 | 5 5 5 5 5 5 5 Most Carried 5 | 2 4 5 5 5 5 4 Average Carried 4 | . 3 4 5 4 3 4 Final Capacity 5 | 5 5 5 5 5 5 5 Final Carried 5 | 2 4 5 5 4 4 4 Class Distribution -------------------- 52% | Hacker-Mutant 34% | Hacker-Skirmisher 7% | Hacker-Sprinter 5% | Scavenger-Skirmisher Dominant Class ---------------- Hacker-Mutant | -10/Materials Hacker-Mutant | -10/Mines Hacker-Mutant | -10/Exiles Hacker-Skirmisher | -9/Mines Hacker-Skirmisher | -8/Materials Hacker-Skirmisher | -8/Storage Resources | -11 -10 -10 -10 -9 -8 -8 ----------- Run | Yrd Mat Min Exi Min Mat Sto Matter Collected 916 | 206 109 . . 146 455 . Remotely . | . . . . . . . Salvage Created 2210 | 76 88 . . 390 1656 . Parts 105 | 3 6 . . 14 82 . Haulers Intercepted 6 | . 1 . . . 5 . Recyclers Shooed . | . . . . . . . Parts Field Recycled . | . . . . . . . Retrieved Matter . | . . . . . . . Parts Self-Destructed . | . . . . . . . Prevented . | . . . . . . . Kills | -11 -10 -10 -10 -9 -8 -8 ------- Run | Yrd Mat Min Exi Min Mat Sto Combat Hostiles Destroyed 31 | . . . . 5 26 . Guns 12 | . . . . . 12 . Cannons 15 | . . . . 4 11 . AOE 1 | . . . . . 1 . Classes Destroyed 12 | 2 2 . . 3 5 . Builder 1 | . . . . 1 . . Tunneler 1 | 1 . . . . . . Hauler 6 | . 1 . . . 5 . Recycler 3 | 1 . . . 2 . . Operator 4 | . . . . . 4 . Watcher 7 | . 2 . . . 5 . Swarmer 4 | . . . . . 4 . Grunt 16 | . . . . 4 12 . Duelist 1 | . . . . . 1 . Sentry 8 | . . . . . 8 . Demolisher 1 | . . . . 1 . . Hunter 1 | . . . . . 1 . Best Kill Streak 4 | 2 2 . . 2 4 . Combat Bots Only 4 | . . . . 2 4 . Max Kills in Single Turn 1 | 1 1 . . 1 1 . Gunslinging . | . . . . . . . Exploded 1 | . . . . . 1 . Melee . | . . . . . . . Uniques/NPCs Destroyed . | . . . . . . . Combat | -11 -10 -10 -10 -9 -8 -8 -------- Run | Yrd Mat Min Exi Min Mat Sto Hostile Shots Fired 104 | . . . . 9 95 . Missed 39 | . . . . 2 37 . Hits 65 | . . . . 7 58 . Projectile 65 | . . . . 7 58 . Critical Strikes 2 | . . . . . 2 . Damage Taken 589 | . . . . 61 528 . Core 95 | . . . . 25 70 . Absorbed by Shields . | . . . . . . . Ignored by Resistances 359 | . . . . 39 320 . Regen/Repaired (Parts) 34 | . . . . . 34 . Core Remaining (%) 95 | 100 . . . 90 . . Volleys Fired 93 | 4 4 . . 10 75 . Largest 2 | 2 2 . . 2 2 . Hottest 138 | 40 120 . . 120 138 . Shots Fired 185 | 8 8 . . 21 148 . Gun 82 | 8 3 . . . 71 . Cannon 103 | . 5 . . 21 77 . Launcher . | . . . . . . . Special . | . . . . . . . Kinetic 11 | 8 3 . . . . . Thermal 174 | . 5 . . 21 148 . Explosive . | . . . . . . . Electromagnetic . | . . . . . . . Robot Hit Streak 27 | 8 9 . . 8 27 . Robot Miss Streak 1 | . 1 . . 1 1 . Penetration Max . | . . . . . . . Secondary Targets . | . . . . . . . Shots Hit Robots 150 | 8 4 . 4 16 118 . Core Hits 69 | 4 3 . . 7 55 . Critical Kills 1 | . . . . . 1 . Critical Parts Destroyed . | . . . . . . . Critical Strikes 7 | . . . . . 7 . Burn 6 | . . . . . 6 . Meltdown 1 | . . . . . 1 . Melee Attacks 4 | . . . 4 . . . Impact . | . . . . . . . Slashing . | . . . . . . . Piercing . | . . . . . . . Sneak Attacks 4 | . . . 4 . . . Combat Hostiles . | . . . . . . . Follow-up Attacks . | . . . . . . . Damage Inflicted 2871 | 83 64 . . 297 2427 . Guns 1337 | 83 12 . . . 1242 . Cannons 1534 | . 52 . . 297 1185 . Explosions . | . . . . . . . Melee . | . . . . . . . Ramming . | . . . . . . . Kinetic 95 | 83 12 . . . . . Thermal 2776 | . 52 . . 297 2427 . Explosive . | . . . . . . . Electromagnetic . | . . . . . . . Impact . | . . . . . . . Slashing . | . . . . . . . Piercing . | . . . . . . . Highest Corruption 3 | . . . 3 3 . . Average Corruption 3 | . . . 3 3 . . Corruption Purged . | . . . . . . . Corruption Blocked . | . . . . . . . Effects 17 | . . . 2 15 . . Message Errors 2 | . . . . 2 . . Matter Fused 6 | . . . 2 4 . . Heat Flow Errors 2 | . . . . 2 . . Energy Discharges 2 | . . . . 2 . . Data Loss (minor) 2 | . . . . 2 . . Misfires 2 | . . . . 2 . . Weapon Failures 1 | . . . . 1 . . Overload Shots . | . . . . . . . Overflow Damage 4 | . . . . . 4 . Projectiles 4 | . . . . . 4 . Explosions . | . . . . . . . Melee . | . . . . . . . Knockbacks . | . . . . . . . Impact . | . . . . . . . Kinetic . | . . . . . . . Secondary . | . . . . . . . Self-Inflicted Damage . | . . . . . . . Shots . | . . . . . . . Rammed . | . . . . . . . Targets Rammed . | . . . . . . . Kicked . | . . . . . . . Crushed . | . . . . . . . Highest Temperature 333 | 6 69 . . 333 180 . Average Temperature 48 | 4 24 . . 90 33 . Received Heat Transfer 390 | . . . . 57 333 . Effects 1 | . . . . 1 . . Energy Bleed 1 | . . . . 1 . . Siege Activations . | . . . . . . . Martial Activations . | . . . . . . . Shielding Activations . | . . . . . . . Robots Disrupted . | . . . . . . . Combat Hostiles . | . . . . . . . Robots Corrupted . | . . . . . . . Combat Hostiles . | . . . . . . . Parts Fried . | . . . . . . . Impact Corruptions . | . . . . . . . Robots Melted 3 | . . . . 1 2 . Combat Hostiles 3 | . . . . 1 2 . Parts Melted 14 | . . . . 2 12 . Heat Transferred 5624 | . 111 . . 629 4884 . Parts Sabotaged . | . . . . . . . Parts Stolen . | . . . . . . . Parts Stripped . | . . . . . . . Power Chain Reactions . | . . . . . . . Alert | -11 -10 -10 -10 -9 -8 -8 ------- Run | Yrd Mat Min Exi Min Mat Sto Maximum Alert Level . | . . . . . . . Low Security (%) 100 | 100 100 100 . 100 100 100 Level 1 . | . . . . . . . Level 2 . | . . . . . . . Level 3 . | . . . . . . . Level 4 . | . . . . . . . Level 5 . | . . . . . . . High Security . | . . . . . . . Max Security . | . . . . . . . Peak Influence 182 | 10 16 . . 58 182 26 Initial 26 | . . . . . . 26 Average 16 | 1 . . . 4 37 26 Influence Increases 1200 | 10 50 . . 192 948 . Destroy 0b10 Robot/C 700 | . . . . 140 560 . Destroy 0b10 Robot/NC 110 | 10 15 . . 15 70 . Destroy Leader 236 | . 6 . . 30 200 . Allied During Kill 7 | . . . . 7 . . Trap Triggered on 0b10 50 | . . . . . 50 . Successful Hack 44 | . 28 . . . 16 . Destroy Structure 8 | . 1 . . . 7 . Partial Spotted 30 | . . . . . 30 . Lose Combat Pursuer 15 | . . . . . 15 . Influence Decreases 1174 | 10 50 . . 190 860 64 Entered New Map 66 | . . . . . 2 64 Time Decay 1068 | 10 50 . . 170 838 . Lost Ally 40 | . . . . 20 20 . Squads Dispatched 7 | . . . . . 7 . Investigation . | . . . . . . . Extermination . | . . . . . . . Reinforcement 4 | . . . . . 4 . Assault . | . . . . . . . Garrison 3 | . . . . . 3 . Intercept . | . . . . . . . Searches Triggered . | . . . . . . . Construction Impeded . | . . . . . . . Haulers Reinforced . | . . . . . . . Active Scanning Responses . | . . . . . . . Cargo Convoy Interrupts . | . . . . . . . Stealth | -11 -10 -10 -10 -9 -8 -8 --------- Run | Yrd Mat Min Exi Min Mat Sto Distress Signals 2 | . 1 . . . 1 . Communications Jammed . | . . . . . . . Distress Signals . | . . . . . . . Times Spotted 60 | . 5 . . 7 48 . Peak Tracking Total 4 | . 2 . . 3 4 . Tactical Retreats 1 | . . . . . 1 . Traps | -11 -10 -10 -10 -9 -8 -8 ------- Run | Yrd Mat Min Exi Min Mat Sto Traps Triggered . | . . . . . . . Indirectly . | . . . . . . . Trap Hack Attempts . | . . . . . . . Triggered . | . . . . . . . Disarmed . | . . . . . . . Reprogrammed 10 | . . . . . 10 . Reused 5 | . . . . . 5 . Traps Extracted . | . . . . . . . Installed . | . . . . . . . Triggered 5 | . . . . . 5 . Objects Rigged 21 | . . . . . 21 . Exploded 16 | . . . . . 16 . Machines | -11 -10 -10 -10 -9 -8 -8 ---------- Run | Yrd Mat Min Exi Min Mat Sto Machines Disabled . | . . . . . . . Max in Single Turn . | . . . . . . . Machines Repaired . | . . . . . . . Machines Dismantled . | . . . . . . . Machines Sabotaged . | . . . . . . . Overloaded Fab Kills . | . . . . . . . Hacking | -11 -10 -10 -10 -9 -8 -8 --------- Run | Yrd Mat Min Exi Min Mat Sto Machines Accessed 26 | . 8 . 5 . 13 . Terminals 16 | . 7 . . . 9 . Fabricators . | . . . . . . . Repair Stations 2 | . . . . . 2 . Recycling Units 2 | . 1 . . . 1 . Scanalyzers 1 | . . . . . 1 . Garrison Access . | . . . . . . . Total Hacks 151 | . 33 . 50 . 68 . Successful 130 | . 23 . 50 . 57 . Failed 21 | . 10 . . . 11 . Catastrophic . | . . . . . . . Database Lockouts . | . . . . . . . Manual 78 | . 32 . 1 . 45 . Terminals 84 | . 29 . . . 55 . Fabricators . | . . . . . . . Repair Stations 5 | . . . . . 5 . Recycling Units 8 | . 4 . . . 4 . Scanalyzers 4 | . . . . . 4 . Garrison Access . | . . . . . . . Terminal Hacks 87 | . 8 . 50 . 29 . Record 50 | . . . 49 . 1 . Robot Analysis 9 | . 5 . . . 4 . Prototype ID Bank 13 | . . . . . 13 . Emergency Access Points 3 | . . . . . 3 . Locate Traps 4 | . 1 . . . 3 . Reprogram Traps 2 | . . . . . 2 . Hauler Manifests 2 | . 1 . . . 1 . Registered Components 2 | . 1 . . . 1 . Registered Prototypes 1 | . . . . . 1 . Proto ID Catalog 1 | . . . 1 . . . Fabricator Hacks . | . . . . . . . Repair Station Hacks 5 | . . . . . 5 . Scan Component 3 | . . . . . 3 . Repair 2 | . . . . . 2 . Recycling Unit Hacks 2 | . 1 . . . 1 . Retrieve Components 2 | . 1 . . . 1 . Scanalyzer 4 | . . . . . 4 . Insert Component 2 | . . . . . 2 . Analyze 2 | . . . . . 2 . Garrison Access Hacks . | . . . . . . . Unauthorized Hacks 32 | . 14 . . . 18 . Terminals 26 | . 11 . . . 15 . Botnet 14 | . 6 . . . 8 . Operators 1 | . . . . . 1 . Skim 11 | . 5 . . . 6 . Fabricators . | . . . . . . . Repair Stations . | . . . . . . . Recycling Units 6 | . 3 . . . 3 . Reject 2 | . 1 . . . 1 . Recyclers 2 | . 1 . . . 1 . Mask 2 | . 1 . . . 1 . Scanalyzers . | . . . . . . . Garrison Access . | . . . . . . . Data Cores Recovered . | . . . . . . . Used . | . . . . . . . Hacking Detections 18 | . 7 . . . 11 . Full Trace Events . | . . . . . . . Feedback Events . | . . . . . . . Feedback Blocked . | . . . . . . . Robot Schematics Acquired . | . . . . . . . Robots Built . | . . . . . . . Authchips . | . . . . . . . Time . | . . . . . . . Total Robot Build Rating . | . . . . . . . Part Schematics Acquired 2 | . . . . . 2 . Parts Built . | . . . . . . . Authchips . | . . . . . . . Time . | . . . . . . . Total Part Build Rating . | . . . . . . . Parts Repaired 2 | . . . . . 2 . Time 98 | . . . . . 98 . Parts Recycled . | . . . . . . . Recycled Matter . | . . . . . . . Retrieved Matter . | . . . . . . . Retrieved Components 2 | . . . . . 2 . Parts Scanalyzed 2 | . . . . . 2 . Part Schematics Acquired 2 | . . . . . 2 . Parts Damaged . | . . . . . . . Bothacking | -11 -10 -10 -10 -9 -8 -8 ------------ Run | Yrd Mat Min Exi Min Mat Sto Used RIF Installer . | . . . . . . . Robots Hacked 4 | . . . 4 . . . Non-combat 3 | . . . 3 . . . Combat 1 | . . . 1 . . . Robot Hacks Applied 4 | . . . 4 . . . parse_system 4 | . . . 4 . . . Relay Couplers Released . | . . . . . . . Fabnet Peak Effective % . | . . . . . . . Robots Rewired . | . . . . . . . Allies Hacked . | . . . . . . . Hacks Repelled . | . . . . . . . Allies | -11 -10 -10 -10 -9 -8 -8 -------- Run | Yrd Mat Min Exi Min Mat Sto Total Allies 3 | . . . . 3 . . Largest Group 3 | . . . . 3 2 . Highest-Rated Group 40 | . . . . 40 24 . Highest-Rated Ally 16 | . . . . 16 16 . Total Orders . | . . . . . . . Ally Attacks 55 | . . . . 43 12 . Total Damage 543 | . . . . 417 126 . Kills 4 | . . . . 2 2 . Allies Corrupted . | . . . . . . . Allies Melted . | . . . . . . . Intel | -11 -10 -10 -10 -9 -8 -8 ------- Run | Yrd Mat Min Exi Min Mat Sto Active Infowar (turns) 2323 | . . . 113 1073 1137 . Terrain 2323 | . . . 113 1073 1137 . Robot Analysis Total 9 | . 5 . . . 4 . Derelict Logs Recovered 1 | . . . . 1 . . Drone Launches . | . . . . . . . Drone Recoveries . | . . . . . . . Exploration | -11 -10 -10 -10 -9 -8 -8 ------------- Run | Yrd Mat Min Exi Min Mat Sto Turns Passed 5545 | 67 776 726 1098 1073 1801 4 Spaces Moved 4612 | 39 608 595 904 817 1634 15 Core 4 | 4 . . . . . . Treads . | . . . . . . . Legs 3747 | 35 608 595 904 817 788 . Wheels . | . . . . . . . Hover . | . . . . . . . Flight 861 | . . . . . 846 15 Fastest Speed 26 | 50 120 120 120 120 26 26 Average Speed 102 | 112 120 120 120 120 73 26 Slowest Speed 265 | 120 120 120 120 120 265 26 Overloaded Moves . | . . . . . . . Propulsion Burnouts . | . . . . . . . Robots Hopped 9 | . . . . . 9 . Potential Cave-ins . | . . . . . . . Cave-ins Triggered . | . . . . . . . Exploration Rate (%) 69 | 4 94 91 94 100 97 6 Regions Visited 6 Branch Regions 4 Pre-discovered Areas 4 | . 2 1 1 . . . Known Exits Taken 6 | 1 1 1 1 1 1 . Unknown Exits Taken . | . . . . . . . Scrap Searched 2 | . . 1 . 1 . . Spaces Dug . | . . . . . . . Terrain Destroyed 5 | . . . . . 5 . Melee . | . . . . . . . Projectile 5 | . . . . . 5 . AOE . | . . . . . . . Terrain Rammed . | . . . . . . . Walls Destroyed . | . . . . . . . Machines Disabled . | . . . . . . . Actions | -11 -10 -10 -10 -9 -8 -8 --------- Run | Yrd Mat Min Exi Min Mat Sto Total 5217 | 51 646 607 913 891 2094 15 Wait 356 | . 29 12 . 51 264 . Move 4590 | 38 607 594 903 816 1617 15 Hop 7 | . . . . . 7 . Pick Up 34 | 2 2 1 . 2 27 . Fast Attach 33 | 7 2 . 2 2 20 . Attach 7 | . . . . . 7 . Detach 3 | . . . . . 3 . Swap 14 | . . . 3 3 8 . Drop 55 | . 2 . 1 7 45 . Fire 93 | 4 4 . . 10 75 . Melee 4 | . . . 4 . . . Ram . | . . . . . . . Kick . | . . . . . . . Crush . | . . . . . . . Escape Stasis . | . . . . . . . Rewire . | . . . . . . . Trap 21 | . . . . . 21 . Miscellaneous . | . . . . . . . Route ------- -11/Scrapyard -10/Materials (discovered 5 exits: *Mat x3 / *Min / Sub) -10/Mines (discovered 4 exits: *Mat x2 / *Exi / Sub) -10/Exiles (discovered 2 exits: *Min x2) -9/Mines (discovered 2 exits: *Mat x2) -8/Materials (discovered 5 exits: *Fac x3 / *Sto x2) -8/Storage (discovered 1 exit: Rec) History --------- Turn | Location | Event 19 | -11/Scrapyard | Identified exit to Materials 19 | -11/Scrapyard | Discovered exit to Materials (range 15) 68 | -11/Scrapyard | Entered Materials 68 | -10/Materials | Evolved 1 slot: Utility x1 145 | -10/Materials | Met 8R-AWN 202 | -10/Materials | Identified exit to Mines 202 | -10/Materials | Discovered exit to Mines (range 6) 317 | -10/Materials | Build established: Hacker-Mutant 321 | -10/Materials | Identified exit to Materials 321 | -10/Materials | Discovered exit to Materials (range 16) 653 | -10/Materials | Discovered exit to Materials (range 3) 664 | -10/Materials | Identified exit to Subcaves 664 | -10/Materials | Learned location of 1 exit from Materials 712 | -10/Materials | Learned 2 Storage zone layouts 722 | -10/Materials | Learned 2 Storage zone layouts 723 | -10/Materials | Loaded intel: 11 trap records 725 | -10/Materials | Learned Storage emergency access door positions 844 | -10/Materials | Entered Mines 845 | -10/Mines | Followed 8R-AWN into the Mines 860 | -10/Mines | Met a Derelict bent on vengeance 890 | -10/Mines | Identified exit to Exiles 890 | -10/Mines | Discovered exit to Exiles (range 5) 926 | -10/Mines | Found a hidden stash of uninstalled traps 944 | -10/Mines | Learned location of Storage (-8) 1266 | -10/Mines | Found a damaged Exp. Sensor Array with a note attached 1268 | -10/Mines | Found Prototype Device 1570 | -10/Mines | Entered Exiles 1588 | -10/Exiles | Identified exit to Mines 1588 | -10/Exiles | Discovered exit to Mines (range 15) 1629 | -10/Exiles | Welcomed by 8R-AWN 1657 | -10/Exiles | Met EX-HEX 1720 | -10/Exiles | Met EX-DEC 1814 | -10/Exiles | Met EX-BIN 2123 | -10/Exiles | Learned location of Zion (-6) 2215 | -10/Exiles | Discovered exit to Mines (range 11) 2312 | -10/Exiles | Visited The Gauntlet 2513 | -10/Exiles | Aligned with FarCom system 2514 | -10/Exiles | Given EX-Vault access code 2542 | -10/Exiles | Opened EX-Vault 2548 | -10/Exiles | Found Prototype Storage 2548 | -10/Exiles | Identified Superbattery 2552 | -10/Exiles | Found Prototype Device 2552 | -10/Exiles | Identified PSU Rigger 2553 | -10/Exiles | Identified Exp. Sensor Array 2583 | -10/Exiles | Warned to stay clear of 0b10 Research branches 2668 | -10/Exiles | Left Exiles lab with PSU Rigger 2668 | -10/Exiles | Entered Mines 2724 | -9/Mines | Assisted by bots powering up and referring to "LRC-V3" 2749 | -9/Mines | Assembled infested the area 2799 | -9/Mines | Identified exit to Materials 2799 | -9/Mines | Discovered exit to Materials (range 11) 2975 | -9/Mines | Build established: Hacker-Skirmisher 3055 | -9/Mines | Learned Materials trap positions 3290 | -9/Mines | Discovered exit to Materials (range 16) 3413 | -9/Mines | Received a Rocket Launcher from a helpful Derelict 3741 | -9/Mines | Entered Materials 3741 | -8/Materials | Accompanied by 2 allies 3741 | -8/Materials | Evolved 4 slots: Propulsion x2, Utility x2 3742 | -8/Materials | Identified exit to Factory 3743 | -8/Materials | Loaded intel: 25 trap records 3997 | -8/Materials | Repaired Katana 4024 | -8/Materials | Identified exit to Storage 4024 | -8/Materials | Discovered exit to Storage (range 3) 4094 | -8/Materials | Garrison activated, responded to threat 4130 | -8/Materials | Discovered exit to Storage (range 12) 4811 | -8/Materials | Learned location of 2 exits from Factory 4873 | -8/Materials | Learned Factory stockpile data 4890 | -8/Materials | Learned Storage emergency access door positions 4916 | -8/Materials | Learned Storage emergency access door positions 4951 | -8/Materials | Learned Storage trap positions 5354 | -8/Materials | Build established: Hacker-Sprinter 5513 | -8/Materials | Repaired Imp. VTOL Module 5542 | -8/Materials | Entered Storage 5543 | -8/Storage | Identified exit to Recycling 5544 | -8/Storage | Loaded intel: 21 trap records 5546 | -8/Storage | Self-destructed Last Messages --------------- >>Repair Repairing Imp. VTOL Module... ETC: 60 05513_ Repair station completes Imp. VTOL Module repairs. 05513_ Acquired Imp. VTOL Module. 05515_ Connecting with Repair Station... >>Scan(Adv. Beam Rifle) Scanning Adv. Beam Rifle... Ready to Repair: Adv. Beam Rifle Rating: 3p Time: 60 05523_ Acquired 15 matter. LOCATION=STORAGE GOAL=ESCAPE 05542_ Receiving FarCom transmissions... Loading 4 Storage zones... Loading Storage trap records (x21)... Loading Storage emergency access points (x4)... [Achievement: This Is Interesting...] Map ----- +----------------------------------------------------+ | ???????????????????????????????????????????????? " | | ???????????????????????????????????????????????? " | | ???????????????????????????????????????????????? " | | ???????????????????????????????????????????????? | | ???????????????????????????????????????????????? | | ????????????????????????????????????????????????## | | ?????????????????????????????????????????????????? | | ????????????????????????????????????????????????## | | ??????????????????????? "#????????????????# | | ??????????????????????? ##????????????????# | | ???????????????? ???? #?????????????????# | | ???????????????# #???#######?????????????????# | | ???????????????# #??? #?????????????????# | | ???????????????# #??? """ #?????????????????# | | ???????????????# #???""" " #?????????????????# | | ???????????????+ +??? "" " #?????????????????# | | ???????????????# #??? "" " #?????????????????### | | ???????????????# #??? """" #???????????????????? | | ???????????????+ +???"" #???????????????????? | | ???????????????# #??? #???????????????????? | | ???????????????# ###########???????????????????? | | ???????????????# # T #???????????????????? | | ???????????????# # """ #???????????????????? | | ????????######## # """ #???????????????????? | | ????????# ^ ^^ # """ == #???????????????????? | | ????????# + @= #???????????????????? | | ????????# ^ ^^ # !% #???????????????????? | | ????????############ #???????????????????? | | ???????????????????# #???????????????????? | | ???????????????????###########???????????????????? | | ?????????????????????????????????????????????????? | | ?????????????????????????????????????????????????? | | ?????????????????????????????????????????????????? | | | | | | | | | | | | | | | | | | | | | | | | | | | | | | | | | | | +----------------------------------------------------+ Best States ------------- Heat Dissipation 50 Energy Generation 14 Energy Capacity 280 Matter Stores 300 Matter Capacity 300 Sight Range 16 Terrain Scan Range 16 Terrain Scan Density 85 Armor Coverage 150 Resistance: KI 35 Resistance: TH 35 Resistance: EX 35 Resistance: EM 35 Resistance: I 35 Resistance: S 35 Resistance: P 35 Evasion (%) 64 Targeting Accuracy 8 Offensive Hacking 30 Defensive Hacking 10 Item Schematics ----------------- Imp. VTOL Module | -8/Materials | Scanalyzed Adv. Beam Rifle | -8/Materials | Scanalyzed Robot Schematics ------------------ None Fabricated ------------ Nothing Repaired ---------- Katana | 56% | -8/Materials Imp. VTOL Module | 76% | -8/Materials Alien Tech Used ----------------- None Achievements -------------- This Is Interesting... Challenges ------------ None Game ------ Seed ElectronDirectedDerivative Manual? 0 Play Time 02:30:38 Cumulative 58.6 hours Start 2025.08.25 @ 19:49:52 End 2025.08.26 @ 19:42:07 Sessions 1 Manual Loads 0 Difficulty Explorer Special Mode None Game No. 12 Rogue 0 Adventurer 0 Explorer 12 Win Type - Total 1 Types 0/0/1/0/0/0/0/0/0/0 Lore% 28 Gallery% 30 Achievement% 35 Wizard Run 0 Options --------- Layout 0 ASCII 0 Keyboard 0 Movement Mouse Keybinds 0 Fullscreen 2 Font 24/Terminus Map View 76x50 Zoom Use 0% Tactical HUD 1 Map Filters NONE Filters NONE Steam 1 RUN: 9458e272-4f68-40d1-8e8c-9b9c3b269c42